Workbook

Sheet START
A1: Solar Heat for Industrial Processes - Feasibility Calculator for Mexico
B4: This tool has been created in the course of the project TrustCS.
B6: This is a beta-version under development, no liability is assumed.
B8: Information for usage:
B9: Only cells surrounded by a black box can be edited!
B10: For each integration point at a company, a seperate document has to be filled
B12: Company name
B13: Integration point
B14: Date
B15: Comments

Sheet Energy Demand
A1: Effective Energy Demand
A3: In industrial companies, solar thermal collectors can be integrated at supply or process level. For each integration point a new excel sheet needs to be filled.
A4: Parameter | B4: Unit | C4: Value
A5: Annual heat demand | B5: MWh | C5: 3000
A6: Annual Schedule - Annual operation days | C6: 365
A7: Daily Schedule | C7: Continuous (0 am - 12 pm)
A8: Weekly Schedule | C8: 5 Days/Week (MON-FRI)
A9: Daily operation hours | C9: =IF(C7="Daytime (8 am - 8 pm)",12,IF(C7="Nighttime (8 pm - 8 am)",12,24)) -> 24
A10: Type of boiler or process | C10: Hot Water
A12: Steam/Hot Water temperature (boiler outlet) | B12: °C | C12: 50
A13: Feed water temperature (boiler inlet) | B13: °C | C13: =C12-30 -> 20
A14: Pressure level | B14: bar | C14: 3
A15: Saturation temperature | B15: °C | C15: =VLOOKUP(C14,Data!L3:M62,2) -> 133.5 | D15: → | E15: =IF(C10="Hot Water",IF(C15<C12,"Consistency check failed!","Consistency check okay!"),IF(C15>C12,"Consistency check failed!","Consistency check okay!")) -> Consistency check okay! | F15: =IF(C10="Hot Water",IF(C15<C12,"Outlet temperature is above saturation temperature. Please adapt inputs!",""),IF(C15>C12,"Outlet temperature is below saturation temperature. Please adapt inputs!","")) -> 
A16: Heat transfer fluid used in solar system | C16: =IF(C10="Hot Water","Water","Thermal Oil") -> Water
A17: Heat capacity | B17: kJ/kgK | C17: =IF(C16="Water",4.19,2) -> 4.19
A18: Mean thermal load | B18: kW | C18: =C5*1000/C6/C9*IF(C8="5 Days/Week (MON-FRI)",7/5,1) -> 479.4520548

Sheet Available Area
A1: Available Area
A3: In this table, the available free space for the installation of solar thermal collectors is given.
A4: Parameter | B4: Unit | C4: Value
A5: Available free space | B5: m² | C5: 4000

Sheet Solar Energy Yield
A1: Solar Energy Yield
A4: Parameter | B4: Unit | C4: Value
A5: Annual Direct Normal Irradiation (DNI) at project site | B5: kWh/m²a | C5: 2575 | E5: from https://globalsolaratlas.info
A6: Annual Global Horizontal Irradiation (GHI) at project site | B6: kWh/m²a | C6: 2250 | E6: from https://globalsolaratlas.info
A8: Collector technology | C8: Flat Plate | E8: Suggested technology: | F8: =IF('Energy Demand'!C12<100,"Evacuated Tube or Flat Plate",IF('Energy Demand'!C12<150,"Evacuated Tube, Parabolic trough or Linear Fresnel",IF('Energy Demand'!C12>=150,"Parabolic trough or Linear Fresnel"))) -> Evacuated Tube or Flat Plate
A9: Technology type | C9: =IF(OR(C8="Evacuated Tube",C8="Flat Plate"),"Stationary","Tracking") -> Stationary | D9: → | E9: =IF(AND(C8="Flat Plate",'Energy Demand'!C12>90),"Consistency check failed!",IF(AND(C8="Evacuated Tube",'Energy Demand'!C12>140),"Consistency check failed!",IF(AND(OR(C8="Parabolic Trough",C8="Linear Fresnel"),OR('Energy Demand'!C12<120,'Energy Demand'!C12>250)),"Consistency check failed!","Consistency check okay!"))) -> Consistency check okay! | F9: =IF(E9="Consistency check failed!","This collector type is not suitable for the given temperature level!","") -> 
A11: Targeted solar fraction | B11: % | C11: 30
A13: Storage size | C13: large
A14: Specific storage capacity | B14: Wh/m² | C14: =IF(C13="very small",300,IF(C13="small",700,IF(C13="medium",1100,1500))) -> 1500 | E14: Storage capacity per m² solar field area
A15: Specific storage volume | B15: l/m² | C15: =C14/('Energy Demand'!C17*('Energy Demand'!C12-'Energy Demand'!C13)*1000)*3600 -> 42.95942721 | E15: Storage volume per m² solar field area
A17: System efficiency at location | B17: % | C17: =VLOOKUP(IF(C8="Parabolic Trough","PTC",IF(C8="Linear Fresnel","LFC",IF(C8="Flat Plate","FPC","ETC")))&'Energy Demand'!C12&IF('Energy Demand'!C7="Daytime (8 am - 8 pm)","day","continuous")&IF('Energy Demand'!C8="5 Days/Week (MON-FRI)","5days","7days")&C14&TEXT(C11/100,"0.0"),Data!A2:J1024,IF(C9="Tracking",9,10),0)*100 -> 42.32431397 | E17: Based on simulation results for Mexico | F17: =IF(C8="Parabolic Trough","PTC",IF(C8="Linear Fresnel","LFC",IF(C8="Flat Plate","FPC","ETC")))&'Energy Demand'!C12&IF('Energy Demand'!C7="Daytime (8 am - 8 pm)","day","continuous")&IF('Energy Demand'!C8="5 Days/Week (MON-FRI)","5days","7days")&C14&TEXT(C11/100,"0.0") -> FPC50continuous5days15000.3
A19: Solar field aperture area | B19: m² | C19: =ROUNDUP(C11/100*'Energy Demand'!C5*1000/(C17/100*C5),0) -> 826
A20: Storage capacity | B20: kWh | C20: =C19*C14/1000 -> 1239
A21: Storage volume | B21: m³ | C21: =C15*C19/1000 -> 35.48448687
A23: Needed space for collector installation | B23: m² | C23: =C19*IF(C8="Parabolic Trough",2.5,IF(C8="Linear Fresnel",1.6,1.8)) -> 1486.8 | D23: → | E23: =IF(C23>'Available Area'!C5,"Consistency check failed!","Consistency check okay!") -> Consistency check okay! | F23: =IF(C23>'Available Area'!C5,"The available free space may not be sufficient for this solar thermal installation!","The available free space is probably sufficient for this solar thermal installation") -> The available free space is probably sufficient for this solar thermal installation
A24: Annual solar energy yield | B24: MWh | C24: =C11/100*'Energy Demand'!C5 -> 900

Sheet Plant Cost
A1: Plant Cost
A4: Parameter | B4: Unit | C4: Value
A5: Specific collector costs | B5: US$/m² | C5: 350
A6: Specific storage costs | B6: US$/m³ | C6: 1800
A7: Absolute collector costs | B7: US$ | C7: =C5*'Solar Energy Yield'!C19 -> 289100
A8: Absolute storage costs | B8: US$ | C8: =C6*'Solar Energy Yield'!C21 -> 63872.07637
A9: Other costs | B9: US$ | C9: 0
A10: Total capital expenditures (CAPEX) | B10: US$ | C10: =SUM(C7:C9) -> 352972.0764
A11: Operational expenditures (OPEX) | B11: US$/a | C11: 7000 | E11: Suggested: | F11: =0.02*C10 -> 7059.441527 | G11: (~2% of CAPEX)

Sheet Economic Feasibility
A1: Economic Feasibility
A4: Parameter | B4: Unit | C4: Value
A5: Annual yield | B5: MWh | C5: ='Solar Energy Yield'!C24 -> 900 | E5: Extracted from tab "Solar Energy Yield"
A6: CAPEX | B6: US$ | C6: ='Plant Cost'!C10 -> 352972.0764 | E6: Extracted from tab "Cost Data"
A7: Operational expenditures | B7: US$/a | C7: ='Plant Cost'!C11 -> 7000 | E7: Extracted from tab "Cost Data"
A8: Conventional/comparative energy costs | B8: US$/MWh | C8: 60
A9: Project lifetime | B9: a | C9: 20
A10: Weighted Average Cost of Capital (WACC) | B10: %/a | C10: =C24%*C25+(1-C24%)*C27 -> 13.5 | E10: calculated from debt ratio, cost of debt and equity: requires inputs of debt and equity rate
A11: Inflation rate | B11: %/a | C11: 3
A12: Effective rate (of cost of capital, COC) | B12: %/a | C12: 14 | D12: → | E12: =IF(C12>C10,"Consistency check okay!","Consistency check failed!") -> Consistency check okay! | F12: =IF(C12>C10,"WACC below COC.","WACC above COC.") -> WACC below COC.
A13: Discount rate adjusted for inflation | B13: %/a | C13: =(((1+C12/100)/(1+C11/100))-1)*100 -> 10.67961165
A14: Free cash from saved costs | B14: US$/a | C14: =C8*C5-C7 -> 47000
A15: Annuity factor | B15: - | C15: =1/PMT(C13%,C9,-1) -> 8.133106928 | E15: Sum of annual discount factors
A16: Project value based on effective rate | B16: US$/a | C16: =C15*C14 -> 382256.0256
A17: Project or investment margin | B17: US$ | C17: =C16-C6 -> 29283.94925 | D17: → | E17: =IF(C17>0,"The project is economically viable.","The project is not economically viable.") -> The project is economically viable.
A18: Discounted payback period for CAPEX incl. COC | B18: years | C18: =+(LN(C14)-LN(C14-C6*C13%))/LN(1+C13%) -> 15.96251951
A19: Simple payback period for CAPEX excl. COC | B19: years | C19: =(LN(C14)-LN(C14-C6*(1/(1+C11%)-1)))/LN(1/(1+C11%)) -> 6.692315872
A20: LCOH (average cost constant over lifetime) | B20: US$/MWh | C20: =(C6*PMT(C12%,C9,-1)+C7)/C5 -> 66.99315832
A21: LCOH (initial cost inflating over lifetime) | B21: US$/MWh | C21: =(C6*PMT(C13%,C9,-1)+C7)/C5 -> 55.99934912
A23: Optional consistency checks
A24: Offtaker's debt ratio =debt/(debt+equity) | B24: % | C24: 50
A25: Offtaker's required rate on equity | B25: % | C25: 16
A26: Bank's offer of debt tenor | B26: years | C26: 9
A27: Bank's offer of client interest rate | B27: % | C27: 11
A28: Bank's offer of debt service coverage ratio | B28: % | C28: 150
A29: Debt volume based on Bank's market offer | B29: US$ | C29: =C14/C28%/PMT((1+C27%)/(1+C11%)-1,C26,-1) -> 197646.6703 | E29: both debt volumes should compare in order of magnitude
A30: Debt volume based on offtaker's debt ratio | B30: US$ | C30: =C16*C24% -> 191128.0128 | E30: both debt volumes should compare in order of magnitude
A31: Debt volume as average of 2 options above | B31: US$ | C31: =AVERAGE(C29:C30) -> 194387.3416
A32: Residual equity vol. to match Project Value | B32: US$ | C32: =C16-C31 -> 187868.6841 | E32: both equity volumes should compare in order of magnitude
A33: Possible equity vol. based on Offtaker's equity rate | B33: US$ | C33: =C14/PMT((1+C25%)/(1+C11%)-1,C9,-1) -C14/C28%/PMT((1+C25%)/(1+C11%)-1,C26,-1) -> 174743.2738 | E33: both equity volumes should compare in order of magnitude
A34: Minimum equity vol. to cover CAPEX (informative) | B34: US$ | C34: =C6-C31 -> 158584.7348
A36: Cashflows of initial financing less CAPEX equal margin vs operational saved Costs spent on cost of capital (COC) | B36: Financing vs COC | C36: CAPEX vs Saved Energy Costs | D36: Investment Margin
A37: Commercial Operation Date (COD) | B37: =NPV(C12%,C38:C57) -> 382256.0256 | C37: =-C6 -> -352972.0764 | D37: =-C37-B37 -> -29283.94925
A38: Operational Year 01 | B38: =-C38 -> -48410 | C38: =C$14*(1+C$11%)^COUNT(C$37:C37)*(C$9>=COUNT(C$37:C37)) -> 48410 | D38: 0
A39: Operational Year 02 | B39: =-C39 -> -49862.3 | C39: =C$14*(1+C$11%)^COUNT(C$37:C38)*(C$9>=COUNT(C$37:C38)) -> 49862.3 | D39: 0
A40: Operational Year 03 | B40: -51358.169 | C40: =C$14*(1+C$11%)^COUNT(C$37:C39)*(C$9>=COUNT(C$37:C39)) -> 51358.169 | D40: 0
A41: Operational Year 04 | B41: -52898.91407 | C41: =C$14*(1+C$11%)^COUNT(C$37:C40)*(C$9>=COUNT(C$37:C40)) -> 52898.91407 | D41: 0
A42: Operational Year 05 | B42: -54485.88149 | C42: =C$14*(1+C$11%)^COUNT(C$37:C41)*(C$9>=COUNT(C$37:C41)) -> 54485.88149 | D42: 0
A43: Operational Year 06 | B43: -56120.45794 | C43: =C$14*(1+C$11%)^COUNT(C$37:C42)*(C$9>=COUNT(C$37:C42)) -> 56120.45794 | D43: 0
A44: Operational Year 07 | B44: -57804.07167 | C44: =C$14*(1+C$11%)^COUNT(C$37:C43)*(C$9>=COUNT(C$37:C43)) -> 57804.07167 | D44: 0
A45: Operational Year 08 | B45: -59538.19383 | C45: =C$14*(1+C$11%)^COUNT(C$37:C44)*(C$9>=COUNT(C$37:C44)) -> 59538.19383 | D45: 0
A46: Operational Year 09 | B46: -61324.33964 | C46: =C$14*(1+C$11%)^COUNT(C$37:C45)*(C$9>=COUNT(C$37:C45)) -> 61324.33964 | D46: 0
A47: Operational Year 10 | B47: -63164.06983 | C47: =C$14*(1+C$11%)^COUNT(C$37:C46)*(C$9>=COUNT(C$37:C46)) -> 63164.06983 | D47: 0
A48: Operational Year 11 | B48: -65058.99192 | C48: =C$14*(1+C$11%)^COUNT(C$37:C47)*(C$9>=COUNT(C$37:C47)) -> 65058.99192 | D48: 0
A49: Operational Year 12 | B49: -67010.76168 | C49: =C$14*(1+C$11%)^COUNT(C$37:C48)*(C$9>=COUNT(C$37:C48)) -> 67010.76168 | D49: 0
A50: Operational Year 13 | B50: -69021.08453 | C50: =C$14*(1+C$11%)^COUNT(C$37:C49)*(C$9>=COUNT(C$37:C49)) -> 69021.08453 | D50: 0
A51: Operational Year 14 | B51: -71091.71707 | C51: =C$14*(1+C$11%)^COUNT(C$37:C50)*(C$9>=COUNT(C$37:C50)) -> 71091.71707 | D51: 0
A52: Operational Year 15 | B52: -73224.46858 | C52: =C$14*(1+C$11%)^COUNT(C$37:C51)*(C$9>=COUNT(C$37:C51)) -> 73224.46858 | D52: 0
A53: Operational Year 16 | B53: -75421.20264 | C53: =C$14*(1+C$11%)^COUNT(C$37:C52)*(C$9>=COUNT(C$37:C52)) -> 75421.20264 | D53: 0
A54: Operational Year 17 | B54: -77683.83872 | C54: =C$14*(1+C$11%)^COUNT(C$37:C53)*(C$9>=COUNT(C$37:C53)) -> 77683.83872 | D54: 0
A55: Operational Year 18 | B55: -80014.35388 | C55: =C$14*(1+C$11%)^COUNT(C$37:C54)*(C$9>=COUNT(C$37:C54)) -> 80014.35388 | D55: 0
A56: Operational Year 19 | B56: -82414.78449 | C56: =C$14*(1+C$11%)^COUNT(C$37:C55)*(C$9>=COUNT(C$37:C55)) -> 82414.78449 | D56: 0
A57: Operational Year 20 | B57: -84887.22803 | C57: =C$14*(1+C$11%)^COUNT(C$37:C56)*(C$9>=COUNT(C$37:C56)) -> 84887.22803 | D57: 0

Sheet Environmental Impact
A1: Environmental Impact
A3: Parameter | B3: Unit | C3: Value
A4: Annual Solar Yield | B4: KWh/a | C4: ='Solar Energy Yield'!C24 -> 900 | E4: Extracted from tab "Solar Energy Yield", equivalent to saved energy
A5: Conversion efficiency | B5: % | C5: 0.8 | E5: For conventional energy system
A6: Fuel | C6: Natural gas
A7: GHG emissions | B7: gCO2/kWh | C7: =IF(C6="Wood/wood waste",410,IF(C6="Diesel",254,IF(C6="Natural gas",202,IF(C6="Anthracite (coal)",356,IF(C6="Electricity",453,""))))) -> 202
A8: GHG emissions | B8: gCO2/kWh | C8: 0 | E8: (is only used, if "User defined" is selected in cell "Fuel")
A9: Saved GHG emissions | B9: kgCO2/a | C9: =IF(C6="User defined",C8*C4/C5,C7*C4/C5)/1000 -> 227.25

Sheet Data (hidden)
A1: Help | B1: collector | C1: temperature | D1: daily profile | E1: weekly profile | F1: volume | G1: stoCap | H1: sf | I1: effC | J1: effS | L1: Druck | M1: Temperatur
A2: =B2&C2&D2&E2&G2&H2 -> ETC200continuous5days3000.5 | B2: ETC | C2: 200 | D2: continuous | E2: 5days | F2: 19.31 | G2: 300 | H2: 0.5 | I2: 0.05458671174 | J2: 0.05159116911 | L2: bar | M2: °C
A3: ETC200continuous5days7000.5 | B3: ETC | C3: 200 | D3: continuous | E3: 5days | F3: 45.056 | G3: 700 | H3: 0.5 | I3: 0.06810756426 | J3: 0.06467967587 | L3: 0.01 | M3: 7
A4: ETC200continuous7days3000.5 | B4: ETC | C4: 200 | D4: continuous | E4: 7days | F4: 19.31 | G4: 300 | H4: 0.5 | I4: 0.0682666532 | J4: 0.06471583311 | L4: 0.05 | M4: 32.9
A5: ETC200continuous5days11000.5 | B5: ETC | C5: 200 | D5: continuous | E5: 5days | F5: 70.803 | G5: 1100 | H5: 0.5 | I5: 0.08162841679 | J5: 0.07776818263 | L5: 0.1 | M5: 45.8
A6: ETC200continuous7days7000.5 | B6: ETC | C6: 200 | D6: continuous | E6: 7days | F6: 45.056 | G6: 700 | H6: 0.5 | I6: 0.08890561487 | J6: 0.08412027522 | L6: 0.2 | M6: 60.1
A7: ETC200continuous7days3000.4 | B7: ETC | C7: 200 | D7: continuous | E7: 7days | F7: 19.31 | G7: 300 | H7: 0.4 | I7: 0.09199489856 | J7: 0.08610863316 | L7: 0.3 | M7: 69.1
A8: ETC200continuous5days15000.5 | B8: ETC | C8: 200 | D8: continuous | E8: 5days | F8: 96.549 | G8: 1500 | H8: 0.5 | I8: 0.09267775391 | J8: 0.08825437873 | L8: 0.4 | M8: 75.9
A9: ETC200continuous7days11000.5 | B9: ETC | C9: 200 | D9: continuous | E9: 7days | F9: 70.803 | G9: 1100 | H9: 0.5 | I9: 0.1004201596 | J9: 0.0950427225 | L9: 0.5 | M9: 81.3
A10: ETC200continuous7days15000.5 | B10: ETC | C10: 200 | D10: continuous | E10: 7days | F10: 96.549 | G10: 1500 | H10: 0.5 | I10: 0.1058892704 | J10: 0.1002048521 | L10: 0.6 | M10: 86
A11: ETC150continuous5days3000.5 | B11: ETC | C11: 150 | D11: continuous | E11: 5days | F11: 19.827 | G11: 300 | H11: 0.5 | I11: 0.1090460745 | J11: 0.09993591683 | L11: 0.7 | M11: 90
A12: ETC200continuous5days3000.4 | B12: ETC | C12: 200 | D12: continuous | E12: 5days | F12: 19.31 | G12: 300 | H12: 0.4 | I12: 0.1139128884 | J12: 0.1071579388 | L12: 0.8 | M12: 93.5
A13: ETC200continuous5days7000.4 | B13: ETC | C13: 200 | D13: continuous | E13: 5days | F13: 45.056 | G13: 700 | H13: 0.4 | I13: 0.1139128884 | J13: 0.1071579388 | L13: 0.9 | M13: 96.7
A14: ETC200continuous5days11000.4 | B14: ETC | C14: 200 | D14: continuous | E14: 5days | F14: 70.803 | G14: 1100 | H14: 0.4 | I14: 0.1139128884 | J14: 0.1071579388 | L14: 1 | M14: 99.6
A15: ETC200continuous7days3000.3 | B15: ETC | C15: 200 | D15: continuous | E15: 7days | F15: 19.31 | G15: 300 | H15: 0.3 | I15: 0.1157832255 | J15: 0.1075215018 | L15: 1.1 | M15: 102.3
A16: ETC200continuous7days7000.4 | B16: ETC | C16: 200 | D16: continuous | E16: 7days | F16: 45.056 | G16: 700 | H16: 0.4 | I16: 0.1171876471 | J16: 0.1098247167 | L16: 1.2 | M16: 104.8
A17: ETC200continuous5days7000.3 | B17: ETC | C17: 200 | D17: continuous | E17: 5days | F17: 45.056 | G17: 700 | H17: 0.3 | I17: 0.1202192741 | J17: 0.1114003982 | L17: 1.3 | M17: 107.1
A18: ETC200continuous5days15000.4 | B18: ETC | C18: 200 | D18: continuous | E18: 5days | F18: 96.549 | G18: 1500 | H18: 0.4 | I18: 0.1254869287 | J18: 0.1179144652 | L18: 1.4 | M18: 109.3
A19: ETC200continuous7days11000.4 | B19: ETC | C19: 200 | D19: continuous | E19: 7days | F19: 70.803 | G19: 1100 | H19: 0.4 | I19: 0.131146784 | J19: 0.1231549483 | L19: 1.5 | M19: 111.4
A20: ETC200continuous7days15000.4 | B20: ETC | C20: 200 | D20: continuous | E20: 7days | F20: 96.549 | G20: 1500 | H20: 0.4 | I20: 0.1365857381 | J20: 0.1283061406 | L20: 1.6 | M20: 113.3
A21: ETC200continuous5days11000.3 | B21: ETC | C21: 200 | D21: continuous | E21: 5days | F21: 70.803 | G21: 1100 | H21: 0.3 | I21: 0.1396880308 | J21: 0.1293140825 | L21: 1.7 | M21: 115.2
A22: ETC200continuous5days3000.3 | B22: ETC | C22: 200 | D22: continuous | E22: 5days | F22: 19.31 | G22: 300 | H22: 0.3 | I22: 0.1442285608 | J22: 0.1377346606 | L22: 1.8 | M22: 116.9
A23: ETC200continuous7days7000.3 | B23: ETC | C23: 200 | D23: continuous | E23: 7days | F23: 45.056 | G23: 700 | H23: 0.3 | I23: 0.1447279022 | J23: 0.1346748057 | L23: 1.9 | M23: 118.6
A24: ETC150continuous7days3000.5 | B24: ETC | C24: 150 | D24: continuous | E24: 7days | F24: 19.827 | G24: 300 | H24: 0.5 | I24: 0.1496473783 | J24: 0.1371570109 | L24: 2 | M24: 120.2
A25: ETC200continuous5days15000.3 | B25: ETC | C25: 200 | D25: continuous | E25: 5days | F25: 96.549 | G25: 1500 | H25: 0.3 | I25: 0.1503592579 | J25: 0.1390301697 | L25: 2.5 | M25: 127.4
A26: ETC100day5days3000.3 | B26: ETC | C26: 100 | D26: day | E26: 5days | F26: 20.595 | G26: 300 | H26: 0.3 | I26: 0.3599794378 | J26: 0.3233472861 | L26: 3 | M26: 133.5
A27: ETC100day5days3000.4 | B27: ETC | C27: 100 | D27: day | E27: 5days | F27: 20.595 | G27: 300 | H27: 0.4 | I27: 0.3777756559 | J27: 0.3389687887 | L27: 3.5 | M27: 138.9
A28: ETC100day5days3000.5 | B28: ETC | C28: 100 | D28: day | E28: 5days | F28: 20.595 | G28: 300 | H28: 0.5 | I28: 0.394300572 | J28: 0.3557027509 | L28: 4 | M28: 143.6
A29: ETC100day5days7000.3 | B29: ETC | C29: 100 | D29: day | E29: 5days | F29: 48.056 | G29: 700 | H29: 0.3 | I29: 0.3801526657 | J29: 0.3414828846 | L29: 4.5 | M29: 147.9
A30: ETC100day5days7000.4 | B30: ETC | C30: 100 | D30: day | E30: 5days | F30: 48.056 | G30: 700 | H30: 0.4 | I30: 0.393646349 | J30: 0.35332975 | L30: 5 | M30: 151.8
A31: ETC100day5days7000.5 | B31: ETC | C31: 100 | D31: day | E31: 5days | F31: 48.056 | G31: 700 | H31: 0.5 | I31: 0.3945997652 | J31: 0.3555824382 | L31: 5.5 | M31: 155.5
A32: ETC100day5days11000.3 | B32: ETC | C32: 100 | D32: day | E32: 5days | F32: 75.517 | G32: 1100 | H32: 0.3 | I32: 0.4003258936 | J32: 0.3596184832 | L32: 6 | M32: 158.8
A33: ETC100day5days11000.4 | B33: ETC | C33: 100 | D33: day | E33: 5days | F33: 75.517 | G33: 1100 | H33: 0.4 | I33: 0.409517042 | J33: 0.3676907114 | L33: 7 | M33: 165
A34: ETC100day5days11000.5 | B34: ETC | C34: 100 | D34: day | E34: 5days | F34: 75.517 | G34: 1100 | H34: 0.5 | I34: 0.4140076852 | J34: 0.3722685198 | L34: 8 | M34: 170.4
A35: ETC100day5days15000.3 | B35: ETC | C35: 100 | D35: day | E35: 5days | F35: 102.977 | G35: 1500 | H35: 0.3 | I35: 0.4165935646 | J35: 0.3742128978 | L35: 9 | M35: 175.4
A36: ETC100day5days15000.4 | B36: ETC | C36: 100 | D36: day | E36: 5days | F36: 102.977 | G36: 1500 | H36: 0.4 | I36: 0.4232038757 | J36: 0.3800087779 | L36: 10 | M36: 179.9
A37: ETC100day5days15000.5 | B37: ETC | C37: 100 | D37: day | E37: 5days | F37: 102.977 | G37: 1500 | H37: 0.5 | I37: 0.4270105809 | J37: 0.3837445474 | L37: 11 | M37: 184.1
A38: ETC100day7days3000.3 | B38: ETC | C38: 100 | D38: day | E38: 7days | F38: 20.595 | G38: 300 | H38: 0.3 | I38: 0.4961039814 | J38: 0.4462076586 | L38: 12 | M38: 188
A39: ETC100day7days3000.4 | B39: ETC | C39: 100 | D39: day | E39: 7days | F39: 20.595 | G39: 300 | H39: 0.4 | I39: 0.5224649171 | J39: 0.4694902453 | L39: 13 | M39: 191.6
A40: ETC100day7days3000.5 | B40: ETC | C40: 100 | D40: day | E40: 7days | F40: 20.595 | G40: 300 | H40: 0.5 | I40: 0.5107605393 | J40: 0.4625807227 | L40: 14 | M40: 195
A41: ETC100day7days7000.3 | B41: ETC | C41: 100 | D41: day | E41: 7days | F41: 48.056 | G41: 700 | H41: 0.3 | I41: 0.5083201296 | J41: 0.4573336281 | L41: 15 | M41: 198.3
A42: ETC100day7days7000.4 | B42: ETC | C42: 100 | D42: day | E42: 7days | F42: 48.056 | G42: 700 | H42: 0.4 | I42: 0.5294525018 | J42: 0.4759845875 | L42: 16 | M42: 201.4
A43: ETC100day7days7000.5 | B43: ETC | C43: 100 | D43: day | E43: 7days | F43: 48.056 | G43: 700 | H43: 0.5 | I43: 0.5257060826 | J43: 0.4749642492 | L43: 17 | M43: 204.3
A44: ETC100day7days11000.3 | B44: ETC | C44: 100 | D44: day | E44: 7days | F44: 75.517 | G44: 1100 | H44: 0.3 | I44: 0.5205362779 | J44: 0.4684595977 | L44: 18 | M44: 207.1
A45: ETC100day7days11000.4 | B45: ETC | C45: 100 | D45: day | E45: 7days | F45: 75.517 | G45: 1100 | H45: 0.4 | I45: 0.5364400865 | J45: 0.4824789297 | L45: 19 | M45: 209.8
A46: ETC100day7days11000.5 | B46: ETC | C46: 100 | D46: day | E46: 7days | F46: 75.517 | G46: 1100 | H46: 0.5 | I46: 0.5406516259 | J46: 0.4873477757 | L46: 20 | M46: 212.4
A47: ETC100day7days15000.3 | B47: ETC | C47: 100 | D47: day | E47: 7days | F47: 102.977 | G47: 1500 | H47: 0.3 | I47: 0.5281365077 | J47: 0.4754232607 | L47: 21 | M47: 214.9
A48: ETC100day7days15000.4 | B48: ETC | C48: 100 | D48: day | E48: 7days | F48: 102.977 | G48: 1500 | H48: 0.4 | I48: 0.5408447694 | J48: 0.4866345192 | L48: 25 | M48: 233.9
A49: ETC100day7days15000.5 | B49: ETC | C49: 100 | D49: day | E49: 7days | F49: 102.977 | G49: 1500 | H49: 0.5 | I49: 0.5460626343 | J49: 0.4919704371 | L49: 26 | M49: 226
A50: ETC150continuous5days3000.4 | B50: ETC | C50: 150 | D50: continuous | E50: 5days | F50: 19.827 | G50: 300 | H50: 0.4 | I50: 0.1504960326 | J50: 0.1392951494 | L50: 30 | M50: 233.8
A51: ETC200continuous7days11000.3 | B51: ETC | C51: 200 | D51: continuous | E51: 7days | F51: 70.803 | G51: 1100 | H51: 0.3 | I51: 0.1593489887 | J51: 0.1483154228 | L51: 31 | M51: 235.7
A52: ETC200continuous7days15000.3 | B52: ETC | C52: 200 | D52: continuous | E52: 7days | F52: 96.549 | G52: 1500 | H52: 0.3 | I52: 0.1642989759 | J52: 0.1529710345 | L52: 40 | M52: 250.3
A53: ETC150continuous5days7000.5 | B53: ETC | C53: 150 | D53: continuous | E53: 5days | F53: 46.262 | G53: 700 | H53: 0.5 | I53: 0.1644303362 | J53: 0.1512287062 | L53: 41 | M53: 251.8
A54: ETC100continuous5days3000.5 | B54: ETC | C54: 100 | D54: continuous | E54: 5days | F54: 20.595 | G54: 300 | H54: 0.5 | I54: 0.1799563782 | J54: 0.1631961115 | L54: 50 | M54: 263.9
A55: ETC150continuous7days3000.4 | B55: ETC | C55: 150 | D55: continuous | E55: 7days | F55: 19.827 | G55: 300 | H55: 0.4 | I55: 0.1831620132 | J55: 0.1673272104 | L55: 60 | M55: 275.6
A56: ETC150continuous7days7000.5 | B56: ETC | C56: 150 | D56: continuous | E56: 7days | F56: 46.262 | G56: 700 | H56: 0.5 | I56: 0.2006019921 | J56: 0.1847313199 | L56: 70 | M56: 285.8
A57: ETC150continuous5days7000.4 | B57: ETC | C57: 150 | D57: continuous | E57: 5days | F57: 46.262 | G57: 700 | H57: 0.4 | I57: 0.2061118462 | J57: 0.1889971338 | L57: 80 | M57: 295
A58: ETC150continuous5days3000.3 | B58: ETC | C58: 150 | D58: continuous | E58: 5days | F58: 19.827 | G58: 300 | H58: 0.3 | I58: 0.2116214252 | J58: 0.1946497717 | L58: 90 | M58: 303.3
A59: ETC150continuous5days11000.5 | B59: ETC | C59: 150 | D59: continuous | E59: 5days | F59: 72.698 | G59: 1100 | H59: 0.5 | I59: 0.219814598 | J59: 0.2025214956 | L59: 100 | M59: 311
A60: ETC150continuous7days3000.3 | B60: ETC | C60: 150 | D60: continuous | E60: 7days | F60: 19.827 | G60: 300 | H60: 0.3 | I60: 0.2320682667 | J60: 0.2145292256 | L60: 150 | M60: 342.1
A61: ETC100continuous7days3000.5 | B61: ETC | C61: 100 | D61: continuous | E61: 7days | F61: 20.595 | G61: 300 | H61: 0.5 | I61: 0.2391933109 | J61: 0.2147586064 | L61: 200 | M61: 365.7
A62: ETC150continuous5days7000.3 | B62: ETC | C62: 150 | D62: continuous | E62: 5days | F62: 46.262 | G62: 700 | H62: 0.3 | I62: 0.2477412064 | J62: 0.2264085859 | L62: 221.2 | M62: 374.2
A63: ETC150continuous7days7000.4 | B63: ETC | C63: 150 | D63: continuous | E63: 7days | F63: 46.262 | G63: 700 | H63: 0.4 | I63: 0.2496034238 | J63: 0.2296613466
A64: ETC150continuous7days11000.5 | B64: ETC | C64: 150 | D64: continuous | E64: 7days | F64: 72.698 | G64: 1100 | H64: 0.5 | I64: 0.2514102308 | J64: 0.2327993661
A65: ETC150continuous5days11000.4 | B65: ETC | C65: 150 | D65: continuous | E65: 5days | F65: 72.698 | G65: 1100 | H65: 0.4 | I65: 0.2617276598 | J65: 0.2386991183
A66: =B66&C66&D66&E66&G66&H66 -> ETC150continuous5days15000.5 | B66: ETC | C66: 150 | D66: continuous | E66: 5days | F66: 99.134 | G66: 1500 | H66: 0.5 | I66: 0.2634013491 | J66: 0.2414595617
A67: ETC100continuous5days7000.5 | B67: ETC | C67: 100 | D67: continuous | E67: 5days | F67: 48.056 | G67: 700 | H67: 0.5 | I67: 0.2662487736 | J67: 0.240998911
A68: ETC150continuous5days11000.3 | B68: ETC | C68: 150 | D68: continuous | E68: 5days | F68: 72.698 | G68: 1100 | H68: 0.3 | I68: 0.2838609877 | J68: 0.2581674
A69: ETC50continuous5days3000.5 | B69: ETC | C69: 50 | D69: continuous | E69: 5days | F69: 21.535 | G69: 300 | H69: 0.5 | I69: 0.2860292929 | J69: 0.2565816247
A70: ETC100continuous7days3000.4 | B70: ETC | C70: 100 | D70: continuous | E70: 7days | F70: 20.595 | G70: 300 | H70: 0.4 | I70: 0.2889691687 | J70: 0.2614489216
A71: ETC150continuous5days15000.4 | B71: ETC | C71: 150 | D71: continuous | E71: 5days | F71: 99.134 | G71: 1500 | H71: 0.4 | I71: 0.2911646495 | J71: 0.2645793795
A72: ETC150continuous7days15000.5 | B72: ETC | C72: 150 | D72: continuous | E72: 7days | F72: 99.134 | G72: 1500 | H72: 0.5 | I72: 0.2967115344 | J72: 0.2743510263
A73: ETC150continuous5days15000.3 | B73: ETC | C73: 150 | D73: continuous | E73: 5days | F73: 99.134 | G73: 1500 | H73: 0.3 | I73: 0.3020796055 | J73: 0.2741937445
A74: ETC150day5days3000.3 | B74: ETC | C74: 150 | D74: day | E74: 5days | F74: 19.827 | G74: 300 | H74: 0.3 | I74: 0.2570897918 | J74: 0.2327300465
A75: ETC150day5days3000.4 | B75: ETC | C75: 150 | D75: day | E75: 5days | F75: 19.827 | G75: 300 | H75: 0.4 | I75: 0.2574200272 | J75: 0.2339112945
A76: ETC150day5days3000.5 | B76: ETC | C76: 150 | D76: day | E76: 5days | F76: 19.827 | G76: 300 | H76: 0.5 | I76: 0.2104501521 | J76: 0.1961961624
A77: ETC150day5days7000.3 | B77: ETC | C77: 150 | D77: day | E77: 5days | F77: 46.262 | G77: 700 | H77: 0.3 | I77: 0.2712911374 | J77: 0.2455576241
A78: ETC150day5days7000.4 | B78: ETC | C78: 150 | D78: day | E78: 5days | F78: 46.262 | G78: 700 | H78: 0.4 | I78: 0.2731490888 | J78: 0.2478768528
A79: ETC150day5days7000.5 | B79: ETC | C79: 150 | D79: day | E79: 5days | F79: 46.262 | G79: 700 | H79: 0.5 | I79: 0.2567265916 | J79: 0.2345195353
A80: ETC150day5days11000.3 | B80: ETC | C80: 150 | D80: day | E80: 5days | F80: 72.698 | G80: 1100 | H80: 0.3 | I80: 0.285492483 | J80: 0.2583852018
A81: ETC150day5days11000.4 | B81: ETC | C81: 150 | D81: day | E81: 5days | F81: 72.698 | G81: 1100 | H81: 0.4 | I81: 0.2888781504 | J81: 0.2618424111
A82: ETC150day5days11000.5 | B82: ETC | C82: 150 | D82: day | E82: 5days | F82: 72.698 | G82: 1100 | H82: 0.5 | I82: 0.2796666913 | J82: 0.2548072355
A83: ETC150day5days15000.3 | B83: ETC | C83: 150 | D83: day | E83: 5days | F83: 99.134 | G83: 1500 | H83: 0.3 | I83: 0.2974214254 | J83: 0.2691972245
A84: ETC150day5days15000.4 | B84: ETC | C84: 150 | D84: day | E84: 5days | F84: 99.134 | G84: 1500 | H84: 0.4 | I84: 0.3003361087 | J84: 0.2721585345
A85: ETC150day5days15000.5 | B85: ETC | C85: 150 | D85: day | E85: 5days | F85: 99.134 | G85: 1500 | H85: 0.5 | I85: 0.2936901399 | J85: 0.267166907
A86: ETC150day7days3000.3 | B86: ETC | C86: 150 | D86: day | E86: 7days | F86: 19.827 | G86: 300 | H86: 0.3 | I86: 0.3888748742 | J86: 0.3531269088
A87: ETC150day7days3000.4 | B87: ETC | C87: 150 | D87: day | E87: 7days | F87: 19.827 | G87: 300 | H87: 0.4 | I87: 0.3421486328 | J87: 0.3126987177
A88: ETC150day7days3000.5 | B88: ETC | C88: 150 | D88: day | E88: 7days | F88: 19.827 | G88: 300 | H88: 0.5 | I88: 0.3107245106 | J88: 0.2858749918
A89: ETC150day7days7000.3 | B89: ETC | C89: 150 | D89: day | E89: 7days | F89: 46.262 | G89: 700 | H89: 0.3 | I89: 0.3570907005 | J89: 0.3243471947
A90: ETC150day7days7000.4 | B90: ETC | C90: 150 | D90: day | E90: 7days | F90: 46.262 | G90: 700 | H90: 0.4 | I90: 0.3551277078 | J90: 0.3237425913
A91: ETC150day7days7000.5 | B91: ETC | C91: 150 | D91: day | E91: 7days | F91: 46.262 | G91: 700 | H91: 0.5 | I91: 0.3325283613 | J91: 0.3051565221
A92: ETC150day7days11000.3 | B92: ETC | C92: 150 | D92: day | E92: 7days | F92: 72.698 | G92: 1100 | H92: 0.3 | I92: 0.3639535146 | J92: 0.3305132672
A93: ETC150day7days11000.4 | B93: ETC | C93: 150 | D93: day | E93: 7days | F93: 72.698 | G93: 1100 | H93: 0.4 | I93: 0.3681067829 | J93: 0.3347864648
A94: ETC150day7days11000.5 | B94: ETC | C94: 150 | D94: day | E94: 7days | F94: 72.698 | G94: 1100 | H94: 0.5 | I94: 0.3543322119 | J94: 0.3244380525
A95: ETC150day7days15000.3 | B95: ETC | C95: 150 | D95: day | E95: 7days | F95: 99.134 | G95: 1500 | H95: 0.3 | I95: 0.3676700862 | J95: 0.3339445259
A96: ETC150day7days15000.4 | B96: ETC | C96: 150 | D96: day | E96: 7days | F96: 99.134 | G96: 1500 | H96: 0.4 | I96: 0.3724314887 | J96: 0.3386202955
A97: ETC150day7days15000.5 | B97: ETC | C97: 150 | D97: day | E97: 7days | F97: 99.134 | G97: 1500 | H97: 0.5 | I97: 0.3634456875 | J97: 0.3324096418
A98: ETC150continuous7days7000.3 | B98: ETC | C98: 150 | D98: continuous | E98: 7days | F98: 46.262 | G98: 700 | H98: 0.3 | I98: 0.3061495737 | J98: 0.2818120859
A99: ETC150continuous7days11000.4 | B99: ETC | C99: 150 | D99: continuous | E99: 7days | F99: 72.698 | G99: 1100 | H99: 0.4 | I99: 0.3064395906 | J99: 0.2817742889
A100: ETC100continuous7days7000.5 | B100: ETC | C100: 100 | D100: continuous | E100: 7days | F100: 48.056 | G100: 700 | H100: 0.5 | I100: 0.3261038589 | J100: 0.2951772948
A101: ETC100continuous5days3000.4 | B101: ETC | C101: 100 | D101: continuous | E101: 5days | F101: 20.595 | G101: 300 | H101: 0.4 | I101: 0.3277673145 | J101: 0.2794114733
A102: ETC100continuous5days7000.4 | B102: ETC | C102: 100 | D102: continuous | E102: 5days | F102: 48.056 | G102: 700 | H102: 0.4 | I102: 0.3285211476 | J102: 0.2978371592
A103: ETC150continuous7days15000.4 | B103: ETC | C103: 150 | D103: continuous | E103: 7days | F103: 99.134 | G103: 1500 | H103: 0.4 | I103: 0.3427100458 | J103: 0.3136787549
A104: ETC150continuous7days11000.3 | B104: ETC | C104: 150 | D104: continuous | E104: 7days | F104: 72.698 | G104: 1100 | H104: 0.3 | I104: 0.3479728765 | J104: 0.3182754945
A105: ETC50continuous7days3000.5 | B105: ETC | C105: 50 | D105: continuous | E105: 7days | F105: 21.535 | G105: 300 | H105: 0.5 | I105: 0.3497609791 | J105: 0.3136710599
A106: ETC100continuous5days11000.5 | B106: ETC | C106: 100 | D106: continuous | E106: 5days | F106: 75.517 | G106: 1100 | H106: 0.5 | I106: 0.352541169 | J106: 0.3188017104
A107: ETC150continuous7days15000.3 | B107: ETC | C107: 150 | D107: continuous | E107: 7days | F107: 99.134 | G107: 1500 | H107: 0.3 | I107: 0.3662764266 | J107: 0.3339753185
A108: ETC50continuous5days7000.5 | B108: ETC | C108: 50 | D108: continuous | E108: 5days | F108: 50.248 | G108: 700 | H108: 0.5 | I108: 0.3715914848 | J108: 0.3333557252
A109: ETC100continuous5days3000.3 | B109: ETC | C109: 100 | D109: continuous | E109: 5days | F109: 20.595 | G109: 300 | H109: 0.3 | I109: 0.3733496431 | J109: 0.3316184751
A110: ETC100continuous5days7000.3 | B110: ETC | C110: 100 | D110: continuous | E110: 5days | F110: 48.056 | G110: 700 | H110: 0.3 | I110: 0.3851756561 | J110: 0.3477591768
A111: ETC100continuous5days11000.4 | B111: ETC | C111: 100 | D111: continuous | E111: 5days | F111: 75.517 | G111: 1100 | H111: 0.4 | I111: 0.3928710427 | J111: 0.3546491875
A112: ETC100continuous5days15000.5 | B112: ETC | C112: 100 | D112: continuous | E112: 5days | F112: 102.977 | G112: 1500 | H112: 0.5 | I112: 0.4007562195 | J112: 0.3621690204
A113: ETC100continuous7days7000.4 | B113: ETC | C113: 100 | D113: continuous | E113: 7days | F113: 48.056 | G113: 700 | H113: 0.4 | I113: 0.4083872633 | J113: 0.3721909729
A114: ETC50continuous5days3000.4 | B114: ETC | C114: 50 | D114: continuous | E114: 5days | F114: 21.535 | G114: 300 | H114: 0.4 | I114: 0.4113277173 | J114: 0.3797915902
A115: ETC100continuous5days11000.3 | B115: ETC | C115: 100 | D115: continuous | E115: 5days | F115: 75.517 | G115: 1100 | H115: 0.3 | I115: 0.4152074894 | J115: 0.3735195889
A116: ETC100continuous7days11000.5 | B116: ETC | C116: 100 | D116: continuous | E116: 7days | F116: 75.517 | G116: 1100 | H116: 0.5 | I116: 0.4203438465 | J116: 0.3820700523
A117: ETC100continuous7days3000.3 | B117: ETC | C117: 100 | D117: continuous | E117: 7days | F117: 20.595 | G117: 300 | H117: 0.3 | I117: 0.4212687473 | J117: 0.3859512867
A118: ETC100continuous5days15000.4 | B118: ETC | C118: 100 | D118: continuous | E118: 5days | F118: 102.977 | G118: 1500 | H118: 0.4 | I118: 0.4279214025 | J118: 0.38542974
A119: ETC100continuous5days15000.3 | B119: ETC | C119: 100 | D119: continuous | E119: 5days | F119: 102.977 | G119: 1500 | H119: 0.3 | I119: 0.4332840399 | J119: 0.3892264758
A120: ETC50continuous5days7000.4 | B120: ETC | C120: 50 | D120: continuous | E120: 5days | F120: 50.248 | G120: 700 | H120: 0.4 | I120: 0.4414894812 | J120: 0.3958720569
A121: ETC50continuous7days3000.4 | B121: ETC | C121: 50 | D121: continuous | E121: 7days | F121: 21.535 | G121: 300 | H121: 0.4 | I121: 0.4440728761 | J121: 0.4005942497
A122: ETC200day5days11000.3 | B122: ETC | C122: 200 | D122: day | E122: 5days | F122: 70.803 | G122: 1100 | H122: 0.3 | I122: 0.1368259353 | J122: 0.1268804446
A123: ETC200day5days3000.4 | B123: ETC | C123: 200 | D123: day | E123: 5days | F123: 19.31 | G123: 300 | H123: 0.4 | I123: 0.1052870258 | J123: 0.09982037798
A124: ETC200day5days3000.5 | B124: ETC | C124: 200 | D124: day | E124: 5days | F124: 19.31 | G124: 300 | H124: 0.5 | I124: 0.05628039993 | J124: 0.05825109718
A125: ETC200day5days15000.3 | B125: ETC | C125: 200 | D125: day | E125: 5days | F125: 96.549 | G125: 1500 | H125: 0.3 | I125: 0.1566259026 | J125: 0.1432141901
A126: ETC200day5days7000.4 | B126: ETC | C126: 200 | D126: day | E126: 5days | F126: 45.056 | G126: 700 | H126: 0.4 | I126: 0.1052870258 | J126: 0.09982037798
A127: ETC200day5days7000.5 | B127: ETC | C127: 200 | D127: day | E127: 5days | F127: 45.056 | G127: 700 | H127: 0.5 | I127: 0.07044667068 | J127: 0.07125960845
A128: ETC200day5days3000.3 | B128: ETC | C128: 200 | D128: day | E128: 5days | F128: 19.31 | G128: 300 | H128: 0.3 | I128: 0.175827841 | J128: 0.1555219051
A129: ETC200day5days11000.4 | B129: ETC | C129: 200 | D129: day | E129: 5days | F129: 70.803 | G129: 1100 | H129: 0.4 | I129: 0.1052870258 | J129: 0.09982037798
A130: =B130&C130&D130&E130&G130&H130 -> ETC200day5days11000.5 | B130: ETC | C130: 200 | D130: day | E130: 5days | F130: 70.803 | G130: 1100 | H130: 0.5 | I130: 0.08461294143 | J130: 0.08426811972
A131: ETC200day5days7000.3 | B131: ETC | C131: 200 | D131: day | E131: 5days | F131: 45.056 | G131: 700 | H131: 0.3 | I131: 0.1387994235 | J131: 0.1270592633
A132: ETC200day5days15000.4 | B132: ETC | C132: 200 | D132: day | E132: 5days | F132: 96.549 | G132: 1500 | H132: 0.4 | I132: 0.1550616461 | J132: 0.1418893166
A133: ETC200day5days15000.5 | B133: ETC | C133: 200 | D133: day | E133: 5days | F133: 96.549 | G133: 1500 | H133: 0.5 | I133: 0.09877921218 | J133: 0.09727663099
A134: ETC200day7days3000.3 | B134: ETC | C134: 200 | D134: day | E134: 7days | F134: 19.31 | G134: 300 | H134: 0.3 | I134: 0.1540843248 | J134: 0.1428976362
A135: ETC200day7days3000.4 | B135: ETC | C135: 200 | D135: day | E135: 7days | F135: 19.31 | G135: 300 | H135: 0.4 | I135: 0.1104090641 | J135: 0.1068945447
A136: ETC200day7days3000.5 | B136: ETC | C136: 200 | D136: day | E136: 7days | F136: 19.31 | G136: 300 | H136: 0.5 | I136: 0.03621825173 | J136: 0.03679599461
A137: ETC200day7days7000.3 | B137: ETC | C137: 200 | D137: day | E137: 7days | F137: 45.056 | G137: 700 | H137: 0.3 | I137: 0.1739303066 | J137: 0.1598183175
A138: ETC200day7days7000.4 | B138: ETC | C138: 200 | D138: day | E138: 7days | F138: 45.056 | G138: 700 | H138: 0.4 | I138: 0.1312975647 | J138: 0.1275867497
A139: ETC200day7days7000.5 | B139: ETC | C139: 200 | D139: day | E139: 7days | F139: 45.056 | G139: 700 | H139: 0.5 | I139: 0.04365899103 | J139: 0.04561679779
A140: ETC200day7days11000.3 | B140: ETC | C140: 200 | D140: day | E140: 7days | F140: 70.803 | G140: 1100 | H140: 0.3 | I140: 0.1785049065 | J140: 0.1637870109
A141: ETC200day7days11000.4 | B141: ETC | C141: 200 | D141: day | E141: 7days | F141: 70.803 | G141: 1100 | H141: 0.4 | I141: 0.1334454994 | J141: 0.1302442212
A142: ETC200day7days11000.5 | B142: ETC | C142: 200 | D142: day | E142: 7days | F142: 70.803 | G142: 1100 | H142: 0.5 | I142: 0.04504326567 | J142: 0.04718690298
A143: ETC200day7days15000.3 | B143: ETC | C143: 200 | D143: day | E143: 7days | F143: 96.549 | G143: 1500 | H143: 0.3 | I143: 0.1800990034 | J143: 0.1652450718
A144: ETC200day7days15000.4 | B144: ETC | C144: 200 | D144: day | E144: 7days | F144: 96.549 | G144: 1500 | H144: 0.4 | I144: 0.1600083239 | J144: 0.1503827633
A145: ETC200day7days15000.5 | B145: ETC | C145: 200 | D145: day | E145: 7days | F145: 96.549 | G145: 1500 | H145: 0.5 | I145: 0.0617467177 | J145: 0.06398009462
A146: ETC50continuous5days3000.3 | B146: ETC | C146: 50 | D146: continuous | E146: 5days | F146: 21.535 | G146: 300 | H146: 0.3 | I146: 0.4533905607 | J146: 0.4061368895
A147: ETC50continuous5days11000.5 | B147: ETC | C147: 50 | D147: continuous | E147: 5days | F147: 78.962 | G147: 1100 | H147: 0.5 | I147: 0.4571536767 | J147: 0.4101298258
A148: ETC50continuous7days7000.5 | B148: ETC | C148: 50 | D148: continuous | E148: 7days | F148: 50.248 | G148: 700 | H148: 0.5 | I148: 0.4607754178 | J148: 0.4141091227
A149: ETC50continuous5days7000.3 | B149: ETC | C149: 50 | D149: continuous | E149: 5days | F149: 50.248 | G149: 700 | H149: 0.3 | I149: 0.4738226612 | J149: 0.4237558175
A150: ETC100continuous7days11000.4 | B150: ETC | C150: 100 | D150: continuous | E150: 7days | F150: 75.517 | G150: 1100 | H150: 0.4 | I150: 0.487183667 | J150: 0.4420647189
A151: ETC100continuous7days15000.5 | B151: ETC | C151: 100 | D151: continuous | E151: 7days | F151: 102.977 | G151: 1500 | H151: 0.5 | I151: 0.4886107231 | J151: 0.4429993791
A152: ETC50continuous5days11000.4 | B152: ETC | C152: 50 | D152: continuous | E152: 5days | F152: 78.962 | G152: 1100 | H152: 0.4 | I152: 0.491208989 | J152: 0.4390343618
A153: ETC50continuous5days11000.3 | B153: ETC | C153: 50 | D153: continuous | E153: 5days | F153: 78.962 | G153: 1100 | H153: 0.3 | I153: 0.4942547617 | J153: 0.4413747456
A154: ETC50continuous5days15000.5 | B154: ETC | C154: 50 | D154: continuous | E154: 5days | F154: 107.675 | G154: 1500 | H154: 0.5 | I154: 0.500531767 | J154: 0.4484531716
A155: ETC100continuous7days7000.3 | B155: ETC | C155: 100 | D155: continuous | E155: 7days | F155: 48.056 | G155: 700 | H155: 0.3 | I155: 0.5005780535 | J155: 0.4542033387
A156: ETC50continuous5days15000.3 | B156: ETC | C156: 50 | D156: continuous | E156: 5days | F156: 107.675 | G156: 1500 | H156: 0.3 | I156: 0.5086601601 | J156: 0.4539635793
A157: ETC50continuous5days15000.4 | B157: ETC | C157: 50 | D157: continuous | E157: 5days | F157: 107.675 | G157: 1500 | H157: 0.4 | I157: 0.5146674393 | J157: 0.4596479713
A158: ETC100continuous7days15000.4 | B158: ETC | C158: 100 | D158: continuous | E158: 7days | F158: 102.977 | G158: 1500 | H158: 0.4 | I158: 0.529730391 | J158: 0.4793846174
A159: ETC100continuous7days11000.3 | B159: ETC | C159: 100 | D159: continuous | E159: 7days | F159: 75.517 | G159: 1100 | H159: 0.3 | I159: 0.535539688 | J159: 0.4833377109
A160: ETC100continuous7days15000.3 | B160: ETC | C160: 100 | D160: continuous | E160: 7days | F160: 102.977 | G160: 1500 | H160: 0.3 | I160: 0.5504856303 | J160: 0.4959567175
A161: ETC50continuous7days11000.5 | B161: ETC | C161: 50 | D161: continuous | E161: 7days | F161: 78.962 | G161: 1100 | H161: 0.5 | I161: 0.5717898565 | J161: 0.5145471855
A162: ETC50continuous7days7000.4 | B162: ETC | C162: 50 | D162: continuous | E162: 7days | F162: 50.248 | G162: 700 | H162: 0.4 | I162: 0.5739603819 | J162: 0.5162320888
A163: ETC50continuous7days3000.3 | B163: ETC | C163: 50 | D163: continuous | E163: 7days | F163: 21.535 | G163: 300 | H163: 0.3 | I163: 0.6065532248 | J163: 0.548797909
A164: ETC50continuous7days15000.5 | B164: ETC | C164: 50 | D164: continuous | E164: 7days | F164: 107.675 | G164: 1500 | H164: 0.5 | I164: 0.6273607594 | J164: 0.5638025691
A165: ETC50continuous7days7000.3 | B165: ETC | C165: 50 | D165: continuous | E165: 7days | F165: 50.248 | G165: 700 | H165: 0.3 | I165: 0.6341412017 | J165: 0.5684733337
A166: ETC50continuous7days11000.4 | B166: ETC | C166: 50 | D166: continuous | E166: 7days | F166: 78.962 | G166: 1100 | H166: 0.4 | I166: 0.6361429344 | J166: 0.5704401363
A167: ETC50continuous7days11000.3 | B167: ETC | C167: 50 | D167: continuous | E167: 7days | F167: 78.962 | G167: 1100 | H167: 0.3 | I167: 0.6500722694 | J167: 0.5817801247
A168: ETC50continuous7days15000.3 | B168: ETC | C168: 50 | D168: continuous | E168: 7days | F168: 107.675 | G168: 1500 | H168: 0.3 | I168: 0.6569424221 | J168: 0.5875888315
A169: ETC50continuous7days15000.4 | B169: ETC | C169: 50 | D169: continuous | E169: 7days | F169: 107.675 | G169: 1500 | H169: 0.4 | I169: 0.6609629807 | J169: 0.5916880134
A170: ETC50day5days3000.3 | B170: ETC | C170: 50 | D170: day | E170: 5days | F170: 21.535 | G170: 300 | H170: 0.3 | I170: 0.4103900677 | J170: 0.3662836562
A171: ETC50day5days3000.4 | B171: ETC | C171: 50 | D171: day | E171: 5days | F171: 21.535 | G171: 300 | H171: 0.4 | I171: 0.4316095171 | J171: 0.385072008
A172: ETC50day5days3000.5 | B172: ETC | C172: 50 | D172: day | E172: 5days | F172: 21.535 | G172: 300 | H172: 0.5 | I172: 0.4528322846 | J172: 0.4038024193
A173: ETC50day5days7000.3 | B173: ETC | C173: 50 | D173: day | E173: 5days | F173: 50.248 | G173: 700 | H173: 0.3 | I173: 0.4369445428 | J173: 0.390087696
A174: ETC50day5days7000.4 | B174: ETC | C174: 50 | D174: day | E174: 5days | F174: 50.248 | G174: 700 | H174: 0.4 | I174: 0.4531758394 | J174: 0.4044328342
A175: ETC50day5days7000.5 | B175: ETC | C175: 50 | D175: day | E175: 5days | F175: 50.248 | G175: 700 | H175: 0.5 | I175: 0.4694431044 | J175: 0.4187867232
A176: ETC50day5days11000.3 | B176: ETC | C176: 50 | D176: day | E176: 5days | F176: 78.962 | G176: 1100 | H176: 0.3 | I176: 0.4634990179 | J176: 0.4138917358
A177: ETC50day5days11000.4 | B177: ETC | C177: 50 | D177: day | E177: 5days | F177: 78.962 | G177: 1100 | H177: 0.4 | I177: 0.4747421617 | J177: 0.4237936603
A178: ETC50day5days11000.5 | B178: ETC | C178: 50 | D178: day | E178: 5days | F178: 78.962 | G178: 1100 | H178: 0.5 | I178: 0.4860539241 | J178: 0.4337710271
A179: ETC50day5days15000.3 | B179: ETC | C179: 50 | D179: day | E179: 5days | F179: 107.675 | G179: 1500 | H179: 0.3 | I179: 0.4837492767 | J179: 0.4319293063
A180: ETC50day5days15000.4 | B180: ETC | C180: 50 | D180: day | E180: 5days | F180: 107.675 | G180: 1500 | H180: 0.4 | I180: 0.4920137663 | J180: 0.4392033159
A181: ETC50day5days15000.5 | B181: ETC | C181: 50 | D181: day | E181: 5days | F181: 107.675 | G181: 1500 | H181: 0.5 | I181: 0.5003747065 | J181: 0.4465641312
A182: ETC50day7days3000.3 | B182: ETC | C182: 50 | D182: day | E182: 7days | F182: 21.535 | G182: 300 | H182: 0.3 | I182: 0.5702240537 | J182: 0.5093838738
A183: ETC50day7days3000.4 | B183: ETC | C183: 50 | D183: day | E183: 7days | F183: 21.535 | G183: 300 | H183: 0.4 | I183: 0.6010149523 | J183: 0.5366464178
A184: ETC50day7days3000.5 | B184: ETC | C184: 50 | D184: day | E184: 7days | F184: 21.535 | G184: 300 | H184: 0.5 | I184: 0.6319594699 | J184: 0.564016001
A185: ETC50day7days7000.3 | B185: ETC | C185: 50 | D185: day | E185: 7days | F185: 50.248 | G185: 700 | H185: 0.3 | I185: 0.5901534309 | J185: 0.5273842292
A186: ETC50day7days7000.4 | B186: ETC | C186: 50 | D186: day | E186: 7days | F186: 50.248 | G186: 700 | H186: 0.4 | I186: 0.614648587 | J186: 0.5490621487
A187: ETC50day7days7000.5 | B187: ETC | C187: 50 | D187: day | E187: 7days | F187: 50.248 | G187: 700 | H187: 0.5 | I187: 0.6390635834 | J187: 0.5706585742
A188: ETC50day7days11000.3 | B188: ETC | C188: 50 | D188: day | E188: 7days | F188: 78.962 | G188: 1100 | H188: 0.3 | I188: 0.6100828082 | J188: 0.5453845846
A189: ETC50day7days11000.4 | B189: ETC | C189: 50 | D189: day | E189: 7days | F189: 78.962 | G189: 1100 | H189: 0.4 | I189: 0.6282822218 | J189: 0.5614778796
A190: ETC50day7days11000.5 | B190: ETC | C190: 50 | D190: day | E190: 7days | F190: 78.962 | G190: 1100 | H190: 0.5 | I190: 0.6461676968 | J190: 0.5773011474
A191: ETC50day7days15000.3 | B191: ETC | C191: 50 | D191: day | E191: 7days | F191: 107.675 | G191: 1500 | H191: 0.3 | I191: 0.6220031577 | J191: 0.5561285561
A192: ETC50day7days15000.4 | B192: ETC | C192: 50 | D192: day | E192: 7days | F192: 107.675 | G192: 1500 | H192: 0.4 | I192: 0.6362450339 | J192: 0.5687198208
A193: ETC50day7days15000.5 | B193: ETC | C193: 50 | D193: day | E193: 7days | F193: 107.675 | G193: 1500 | H193: 0.5 | I193: 0.6505244696 | J193: 0.5813839482
A194: =B194&C194&D194&E194&G194&H194 -> FPC200day5days3000.3 | B194: FPC | C194: 200 | D194: day | E194: 5days | F194: 19.31 | G194: 300 | H194: 0.3 | I194: 0.00536157765 | J194: 0.004730246663
A195: FPC200day5days7000.3 | B195: FPC | C195: 200 | D195: day | E195: 5days | F195: 45.056 | G195: 700 | H195: 0.3 | I195: 0.00536157765 | J195: 0.004730246663
A196: FPC200day5days11000.3 | B196: FPC | C196: 200 | D196: day | E196: 5days | F196: 70.803 | G196: 1100 | H196: 0.3 | I196: 0.00536157765 | J196: 0.004730246663
A197: FPC200day5days15000.3 | B197: FPC | C197: 200 | D197: day | E197: 5days | F197: 96.549 | G197: 1500 | H197: 0.3 | I197: 0.00536157765 | J197: 0.004730246663
A198: FPC200day5days3000.4 | B198: FPC | C198: 200 | D198: day | E198: 5days | F198: 19.31 | G198: 300 | H198: 0.4 | I198: 0.0071487702 | J198: 0.00630699555
A199: FPC200day5days7000.4 | B199: FPC | C199: 200 | D199: day | E199: 5days | F199: 45.056 | G199: 700 | H199: 0.4 | I199: 0.0071487702 | J199: 0.00630699555
A200: FPC200day5days11000.4 | B200: FPC | C200: 200 | D200: day | E200: 5days | F200: 70.803 | G200: 1100 | H200: 0.4 | I200: 0.0071487702 | J200: 0.00630699555
... 569 more rows
